fUST/lending_fUST_20250216
["ID","MTS","AMOUNT","RATE_DAILY","PERIOD"]
[353220411,1739667040559,-500.0,8.86e-05,2]
[353220413,1739667040568,-646.11719235,8.86e-05,2]
[353220415,1739667040580,-116.24280765,8.86e-05,2]
[353220418,1739667040590,-500.0,8.86e-05,2]
[353220420,1739667040600,-500.0,8.86e-05,2]
[353220422,1739667040609,-500.0,8.86e-05,2]
[353220424,1739667040620,-500.0,8.86e-05,2]
[353220426,1739667040630,-500.0,8.86e-05,2]
[353220428,1739667040639,-1242.24,8.86e-05,2]
[353220430,1739667040649,-792.85,8.86e-05,2]
[353220432,1739667040658,-500.0,8.86e-05,2]
[353220434,1739667040667,-500.0,8.86e-05,2]
[353220436,1739667040677,-500.0,8.86e-05,2]
[353220437,1739667040687,-500.0,8.86e-05,2]
[353220439,1739667040696,-773.56,8.86e-05,2]
[353220441,1739667040705,-500.0,8.86e-05,2]
[353220443,1739667040715,-500.0,8.86e-05,2]
[353220445,1739667040724,-287.18500078,8.86e-05,2]
[353220447,1739667040733,-1216.45,8.86e-05,2]
[353220449,1739667040743,-500.0,8.86e-05,2]
[353220451,1739667040752,-500.0,8.86e-05,2]
[353220453,1739667040761,-829.2,8.86e-05,2]
[353220455,1739667040771,-703.52,8.86e-05,2]
[353220457,1739667040780,-500.0,8.86e-05,2]
[353220458,1739667040789,-500.0,8.86e-05,2]
[353220459,1739667040798,-2021.3,8.86e-05,2]
[353220460,1739667040808,-589.95,8.86e-05,2]
[353220461,1739667040817,-1276.74,8.86e-05,2]
[353220462,1739667040826,-1409.08,8.86e-05,2]
[353220463,1739667040835,-12145.68219157,8.86e-05,2]
[353220464,1739667040847,-3877.55780843,8.86e-05,2]
[353220465,1739667040856,-500.0,8.86e-05,2]
[353220466,1739667040866,-827.97,8.86e-05,2]
[353220467,1739667040875,-1134.34,8.86e-05,2]
[353220468,1739667040885,-647.49,8.86e-05,2]
[353220469,1739667040894,-1147.82,8.86e-05,2]
[353220470,1739667040903,-1147.82,8.86e-05,2]
[353220471,1739667040912,-1147.82,8.86e-05,2]
[353220472,1739667040922,-500.0,8.86e-05,2]
[353220473,1739667040931,-500.0,8.86e-05,2]
[353220474,1739667040941,-1980.31,8.86e-05,2]
[353220475,1739667040950,-483.46873164,8.86e-05,2]
[353220476,1739667040959,-500.0,8.86e-05,2]
[353220477,1739667040969,-951.19,8.86e-05,2]
[353220478,1739667040980,-1149.64,8.86e-05,2]
[353220479,1739667040990,-500.0,8.86e-05,2]
[353220480,1739667041000,-569.61,8.86e-05,2]
[353220481,1739667041009,-569.61,8.86e-05,2]
[353220482,1739667041018,-569.61,8.86e-05,2]
[353220483,1739667041028,-565.94,8.86e-05,2]
[353220484,1739667041037,-569.61,8.86e-05,2]
[353220485,1739667041047,-569.61,8.86e-05,2]
[353220486,1739667041056,-569.61,8.86e-05,2]
[353220487,1739667041065,-569.61,8.86e-05,2]
[353220488,1739667041075,-500.0,8.86e-05,2]
[353220489,1739667041084,-500.0,8.86e-05,2]
[353220490,1739667041093,-500.0,8.86e-05,2]
[353220491,1739667041102,-500.0,8.86e-05,2]
[353220492,1739667041111,-1509.53,8.86e-05,2]
[353220493,1739667041121,-527.7,8.86e-05,2]
[353220494,1739667041131,-500.0,8.86e-05,2]
[353220495,1739667041141,-500.0,8.86e-05,2]
[353220496,1739667041150,-641.06,8.86e-05,2]
[353220497,1739667041159,-326.92385583,8.86e-05,2]
[353220498,1739667041168,-500.0,8.86e-05,2]
[353220499,1739667041178,-500.0,8.86e-05,2]
[353220500,1739667041187,-500.0,8.86e-05,2]
[353220501,1739667041196,-561.67,8.86e-05,2]
[353220502,1739667041206,-763.82,8.86e-05,2]
[353220503,1739667041216,-1124.8,8.86e-05,2]
[353220504,1739667041226,-500.0,8.86e-05,2]
[353220505,1739667041238,-901.95,8.86e-05,2]
[353220506,1739667041247,-631.38,8.86e-05,2]
[353220507,1739667041257,-500.0,8.86e-05,2]
[353220508,1739667041266,-500.0,8.86e-05,2]
[353220509,1739667041276,-500.0,8.86e-05,2]
[353220510,1739667041286,-500.0,8.86e-05,2]
[353220511,1739667041295,-500.0,8.86e-05,2]
[353220512,1739667041305,-500.0,8.86e-05,2]
[353220513,1739667041315,-1217.54,8.86e-05,2]
[353220514,1739667041325,-2811.06,8.86e-05,2]
[353220515,1739667041336,-1220.97,8.86e-05,2]
[353220516,1739667041346,-500.0,8.86e-05,2]
[353220517,1739667041355,-500.0,8.86e-05,2]
[353220518,1739667041364,-600.53411486,8.86e-05,2]
[353220519,1739667041374,-500.0,8.86e-05,2]
[353220520,1739667041383,-500.24012858,8.86e-05,2]
[353220521,1739667041393,-565.26437193,8.86e-05,2]
[353220522,1739667041403,-1017.31,8.86e-05,2]
[353220523,1739667041413,-500.0,8.86e-05,2]
[353220524,1739667041422,-500.0,8.86e-05,2]
[353220525,1739667041432,-500.0,8.86e-05,2]
[353220526,1739667041441,-500.0,8.86e-05,2]
[353220527,1739667041451,-35369.7,8.86e-05,2]
[353220528,1739667041460,-500.0,8.861e-05,2]
[353220529,1739667041471,-620.93547107,8.861e-05,2]
[353220530,1739667041480,-500.0,8.861e-05,2]
[353220531,1739667041489,-500.0,8.861e-05,2]
[353220532,1739667041499,-500.0,8.861e-05,2]
[353220533,1739667041509,-515.3520278,8.861e-05,2]
[353220534,1739667041519,-375.55426658,8.861e-05,2]
[353220535,1739667041528,-500.0,8.861e-05,2]
[353220536,1739667041538,-661.29,8.861e-05,2]
[353220537,1739667041548,-500.0,8.861e-05,2]
[353220538,1739667041557,-506.96635767,8.861e-05,2]
[353220539,1739667041567,-500.0,8.861e-05,2]
[353220540,1739667041577,-500.0,8.861e-05,2]
[353220541,1739667041587,-444.65036876,8.861e-05,2]
[353220542,1739667041596,-798.18,8.861e-05,2]
[353220543,1739667041605,-557.58,8.861e-05,2]
[353220544,1739667041615,-500.0,8.861e-05,2]
[353220545,1739667041625,-500.0,8.861e-05,2]
[353220546,1739667041636,-500.0,8.861e-05,2]
[353220547,1739667041646,-500.0,8.861e-05,2]
[353220548,1739667041655,-500.0,8.861e-05,2]
[353220549,1739667041665,-979.63,8.861e-05,2]
[353220550,1739667041676,-500.0,8.861e-05,2]
[353220551,1739667041686,-500.0,8.861e-05,2]
[353220552,1739667041695,-500.94804017,8.861e-05,2]
[353220553,1739667041705,-619.41708239,8.861e-05,2]
[353220554,1739667041714,-715.33,8.861e-05,2]
[353220555,1739667041724,-941.82,8.861e-05,2]
[353220556,1739667041733,-500.0,8.861e-05,2]
[353220557,1739667041743,-500.0,8.861e-05,2]
[353220558,1739667041753,-500.0,8.861e-05,2]
[353220559,1739667041763,-1186.4,8.861e-05,2]
[353220560,1739667041772,-519.77469874,8.861e-05,2]
[353220561,1739667041783,-400.95565635,8.861e-05,2]
[353220562,1739667041794,-503.08097205,8.861e-05,2]
[353220563,1739667041803,-285.37874565,8.861e-05,2]
[353220564,1739667041813,-505.92308399,8.861e-05,2]
[353220565,1739667041822,-500.0,8.861e-05,2]
[353220566,1739667041832,-510.65,8.861e-05,2]
[353220567,1739667041842,-524.01,8.861e-05,2]
[353220568,1739667041852,-500.0,8.861e-05,2]
[353220569,1739667041862,-528.21,8.861e-05,2]
[353220570,1739667041871,-500.0,8.861e-05,2]
[353220571,1739667041881,-534.92617777,8.861e-05,2]
[353220572,1739667041891,-500.0,8.861e-05,2]
[353220573,1739667041901,-500.0,8.861e-05,2]
[353220574,1739667041911,-642.54,8.861e-05,2]
[353220575,1739667041920,-505.83065756,8.861e-05,2]
[353220576,1739667041929,-500.0,8.861e-05,2]
[353220577,1739667041940,-716.24,8.861e-05,2]
[353220578,1739667041950,-1422.26,8.861e-05,2]
[353220579,1739667041959,-500.0,8.861e-05,2]
[353220580,1739667041970,-500.0,8.861e-05,2]
[353220581,1739667041979,-500.0,8.861e-05,2]
[353220582,1739667041989,-500.0,8.861e-05,2]
[353220583,1739667041998,-500.0,8.861e-05,2]
[353220584,1739667042008,-619.05,8.861e-05,2]
[353220585,1739667042018,-2494.29,8.861e-05,2]
[353220586,1739667042029,-500.0,8.861e-05,2]
[353220587,1739667042038,-500.0,8.861e-05,2]
[353220588,1739667042049,-610.74086386,8.861e-05,2]
[353220589,1739667042059,-2789.28,8.861e-05,2]
[353220590,1739667042068,-500.0,8.861e-05,2]
[353220591,1739667042078,-500.0,8.861e-05,2]
[353220592,1739667042088,-500.0,8.861e-05,2]
[353220593,1739667042098,-500.0,8.861e-05,2]
[353220594,1739667042108,-500.0,8.861e-05,2]
[353220595,1739667042117,-500.0,8.861e-05,2]
[353220596,1739667042127,-717.53,8.861e-05,2]
[353220597,1739667042137,-658.07,8.861e-05,2]
[353220598,1739667042147,-457.08074923,8.861e-05,2]
[353220599,1739667042157,-500.0,8.861e-05,2]
[353220600,1739667042167,-500.0,8.861e-05,2]
[353220601,1739667042177,-500.0,8.861e-05,2]
[353220602,1739667042296,-500.0,8.861e-05,2]
[353220603,1739667042305,-500.0,8.861e-05,2]
[353220604,1739667042315,-500.0,8.861e-05,2]
[353220605,1739667042324,-500.0,8.861e-05,2]
[353220606,1739667042334,-500.0,8.861e-05,2]
[353220607,1739667042343,-500.0,8.861e-05,2]
[353220608,1739667042353,-500.0,8.861e-05,2]
[353220609,1739667042362,-500.0,8.861e-05,2]
[353220610,1739667042371,-500.0,8.861e-05,2]
[353220611,1739667042383,-500.0,8.861e-05,2]
[353220612,1739667042392,-500.0,8.861e-05,2]
[353220613,1739667042401,-500.0,8.861e-05,2]
[353220614,1739667042411,-566.72,8.861e-05,2]
[353220615,1739667042420,-500.0,8.861e-05,2]
[353220616,1739667042429,-500.0,8.861e-05,2]
[353220617,1739667042439,-500.0,8.861e-05,2]
[353220618,1739667042448,-500.0,8.861e-05,2]
[353220619,1739667042458,-500.0,8.861e-05,2]
[353220620,1739667042468,-500.0,8.861e-05,2]
[353220621,1739667042478,-816.17,8.861e-05,2]
[353220622,1739667042487,-2573.41,8.861e-05,2]
[353220623,1739667042497,-500.0,8.861e-05,2]
[353220624,1739667042507,-500.0,8.861e-05,2]
[353220625,1739667042516,-500.0,8.861e-05,2]
[353220626,1739667042525,-500.0,8.861e-05,2]
[353220627,1739667042534,-587.28,8.861e-05,2]
[353220628,1739667042543,-500.0,8.861e-05,2]
[353220629,1739667042553,-509.81,8.861e-05,2]
[353220630,1739667042562,-349.96214093,8.861e-05,2]
[353220631,1739667042572,-922.8,8.861e-05,2]
[353220632,1739667042581,-514.7,8.861e-05,2]
[353220633,1739667042591,-500.0,8.861e-05,2]
[353220634,1739667042600,-500.0,8.861e-05,2]
[353220635,1739667042610,-500.0,8.861e-05,2]
[353220636,1739667042619,-500.0,8.861e-05,2]
[353220637,1739667042628,-500.0,8.861e-05,2]
[353220638,1739667042638,-500.0,8.861e-05,2]
[353220639,1739667042647,-500.0,8.861e-05,2]
[353220640,1739667042657,-500.0,8.861e-05,2]
[353220641,1739667042667,-561.99,8.861e-05,2]
[353220642,1739667042677,-500.0,8.861e-05,2]
[353220643,1739667042687,-500.0,8.861e-05,2]
[353220644,1739667042696,-500.0,8.861e-05,2]
[353220645,1739667042706,-153.55705781,8.861e-05,2]
[353220646,1739667042717,-500.0,8.861e-05,2]
[353220647,1739667042727,-500.0,8.861e-05,2]
[353220648,1739667042738,-500.0,8.861e-05,2]
[353220649,1739667042748,-500.0,8.861e-05,2]
[353220650,1739667042758,-500.0,8.861e-05,2]
[353220651,1739667042768,-477.42824233,8.861e-05,2]
[353220652,1739667042779,-1032.03,8.861e-05,2]
[353220653,1739667042795,-500.0,8.861e-05,2]
[353220654,1739667042805,-500.0,8.861e-05,2]
[353220655,1739667042814,-500.89769069,8.861e-05,2]
[353220656,1739667042824,-500.0,8.861e-05,2]
[353220657,1739667042833,-500.0,8.861e-05,2]
[353220659,1739667042843,-500.0,8.861e-05,2]
[353220660,1739667042853,-500.0,8.861e-05,2]
[353220662,1739667042862,-1147.82,8.861e-05,2]
[353220663,1739667042872,-1147.82,8.861e-05,2]
[353220664,1739667042882,-1147.82,8.861e-05,2]
[353220665,1739667042891,-546.17,8.861e-05,2]
[353220666,1739667042901,-1147.82,8.861e-05,2]
[353220667,1739667042911,-147.56604577,8.861e-05,2]
[353220681,1739667043500,-500.0,8.86e-05,2]
[353220682,1739667043510,-182.104845,8.861e-05,2]
[353220683,1739667043609,-239.93910923,8.861e-05,2]
[353220684,1739667043619,-500.0,8.861e-05,2]
[353220685,1739667043629,-40.06089077,8.861e-05,2]
[353220697,1739667046572,-459.93910923,8.861e-05,2]
[353220698,1739667046581,-500.0,8.861e-05,2]
[353220699,1739667046590,-500.0,8.861e-05,2]
[353220700,1739667046599,-500.0,8.861e-05,2]
[353220701,1739667046608,-500.0,8.861e-05,2]
[353220702,1739667046617,-469.46010992,8.861e-05,2]
[353220703,1739667046629,-30.53989008,8.861e-05,2]
[353220704,1739667046638,-500.0,8.861e-05,2]
[353220705,1739667046647,-500.0,8.861e-05,2]
[353220706,1739667046656,-400.70504992,8.861e-05,2]
[353220707,1739667046668,-99.29495008,8.861e-05,2]
[353220708,1739667046677,-447.01958492,8.861e-05,2]
[353220710,1739667112158,154.916,8.42e-05,2]
[353220711,1739667155846,1000.0,8.676e-05,2]
[353220712,1739667156109,1000.0,8.747e-05,2]
[353220713,1739667283893,1000.0,8.82e-05,2]
[353220714,1739667283944,1000.0,8.724e-05,2]
[353220716,1739667815750,1000.0,8.667e-05,2]
[353220717,1739667815798,1000.0,8.684e-05,2]
[353220718,1739667815865,1000.0,8.624e-05,2]
[353220719,1739667815912,1000.0,8.754e-05,2]
[353220720,1739667815965,1000.0,8.621e-05,2]
[353220721,1739667895374,150.0,8.455e-05,2]
[353220722,1739667895578,150.0,8.455e-05,2]
[353220723,1739667895855,150.0,8.441e-05,2]
[353220738,1739668232991,-300.0,8.855e-05,2]
[353220739,1739668233002,-1345.99,8.856e-05,2]
[353220740,1739668233013,-2915.97,8.856e-05,2]
[353220741,1739668233023,-500.0,8.856e-05,2]
[353220742,1739668233033,-500.0,8.856e-05,2]
[353220743,1739668233044,-500.0,8.856e-05,2]
[353220744,1739668233053,-500.0,8.856e-05,2]
[353220745,1739668233063,-1831.82,8.856e-05,2]
[353220746,1739668233072,-1079.16,8.856e-05,2]
[353220747,1739668233082,-2008.91,8.856e-05,2]
[353220748,1739668233091,-1024.69,8.856e-05,2]
[353220749,1739668233100,-4313.4,8.856e-05,2]
[353220750,1739668233109,-500.0,8.856e-05,2]
[353220751,1739668233119,-1551.74,8.856e-05,2]
[353220752,1739668233129,-758.13,8.856e-05,2]
[353220753,1739668233139,-1950.51,8.856e-05,2]
[353220754,1739668233149,-500.0,8.856e-05,2]
[353220755,1739668233158,-500.0,8.856e-05,2]
[353220756,1739668233168,-2238.2,8.856e-05,2]
[353220757,1739668233178,-632.94,8.856e-05,2]
[353220758,1739668233187,-3493.77,8.856e-05,2]
[353220759,1739668233196,-500.0,8.857e-05,2]
[353220760,1739668233206,-503.47738624,8.857e-05,2]
[353220761,1739668233215,-500.0,8.857e-05,2]
[353220762,1739668233225,-500.0,8.857e-05,2]
[353220763,1739668233235,-504.68181915,8.857e-05,2]
[353220764,1739668233244,-500.0,8.857e-05,2]
[353220765,1739668233254,-500.0,8.857e-05,2]
[353220766,1739668233264,-500.0,8.857e-05,2]
[353220767,1739668233275,-845.04,8.857e-05,2]
[353220768,1739668233284,-500.0,8.857e-05,2]
[353220769,1739668233295,-500.0,8.857e-05,2]
[353220770,1739668233304,-500.0,8.857e-05,2]
[353220771,1739668233315,-500.0,8.857e-05,2]
[353220772,1739668233324,-500.0,8.857e-05,2]
[353220773,1739668233335,-500.0,8.857e-05,2]
[353220774,1739668233344,-769.63,8.857e-05,2]
[353220775,1739668233354,-500.0,8.857e-05,2]
[353220776,1739668233363,-500.0,8.857e-05,2]
[353220777,1739668233374,-500.0,8.857e-05,2]
[353220778,1739668233383,-500.0,8.857e-05,2]
[353220779,1739668233393,-751.43,8.857e-05,2]
[353220780,1739668233403,-338.3563367,8.857e-05,2]
[353220781,1739668233412,-500.0,8.857e-05,2]
[353220782,1739668233422,-500.0,8.857e-05,2]
[353220783,1739668233432,-500.0,8.857e-05,2]
[353220784,1739668233442,-500.0,8.857e-05,2]
[353220785,1739668233451,-1211.31,8.857e-05,2]
[353220786,1739668233461,-500.0,8.857e-05,2]
[353220787,1739668233471,-500.0,8.857e-05,2]
[353220788,1739668233482,-780.64,8.857e-05,2]
[353220789,1739668233492,-500.0,8.857e-05,2]
[353220790,1739668233502,-500.0,8.857e-05,2]
[353220791,1739668233512,-500.0,8.857e-05,2]
[353220792,1739668233522,-500.0,8.857e-05,2]
[353220793,1739668233537,-500.0,8.857e-05,2]
[353220794,1739668233550,-500.0,8.857e-05,2]
[353220795,1739668233561,-500.0,8.857e-05,2]
[353220796,1739668233571,-762.16,8.857e-05,2]
[353220797,1739668233581,-500.0,8.857e-05,2]
[353220798,1739668233591,-500.0,8.857e-05,2]
[353220799,1739668233601,-500.0,8.857e-05,2]
[353220800,1739668233612,-500.0,8.857e-05,2]
[353220801,1739668233621,-500.0,8.857e-05,2]
[353220802,1739668233631,-500.0,8.857e-05,2]
[353220803,1739668233641,-513.05,8.857e-05,2]
[353220804,1739668233651,-1186.6,8.857e-05,2]
[353220805,1739668233661,-622.26,8.857e-05,2]
[353220806,1739668233670,-500.0,8.857e-05,2]
[353220807,1739668233680,-292.31198312,8.857e-05,2]
[353220808,1739668233690,-500.0,8.857e-05,2]
[353220809,1739668233700,-500.0,8.857e-05,2]
[353220810,1739668233711,-500.0,8.857e-05,2]
[353220811,1739668233721,-713.54,8.857e-05,2]
[353220812,1739668233731,-500.0,8.857e-05,2]
[353220813,1739668233741,-695.04,8.857e-05,2]
[353220814,1739668233752,-500.0,8.857e-05,2]
[353220815,1739668233762,-743.13,8.857e-05,2]
[353220816,1739668233772,-486.82741225,8.857e-05,2]
[353220817,1739668233782,-500.0,8.857e-05,2]
[353220818,1739668233793,-814.43,8.857e-05,2]
[353220819,1739668233802,-500.0,8.857e-05,2]
[353220820,1739668233812,-196.19500371,8.857e-05,2]
[353220821,1739668233821,-34558.09,8.857e-05,2]
[353220822,1739668233831,-930.16,8.857e-05,2]
[353220823,1739668233840,-500.0,8.857e-05,2]
[353220824,1739668233850,-500.0,8.857e-05,2]
[353220825,1739668233860,-220.42865593,8.857e-05,2]
[353220951,1739668313020,600.0,0.00019,120]
[353220955,1739669015863,2000.0,0.00019,120]
[353220956,1739669035947,2000.0,0.00019,120]
[353220962,1739669173185,2000.0,0.00019,120]
[353221013,1739669431985,-2280.07,8.85e-05,2]
[353221014,1739669431995,-300.0,8.853e-05,2]
[353221015,1739669432004,-1289.91,8.854e-05,2]
[353221016,1739669432014,-788.67720939,8.854e-05,2]
[353221019,1739669432055,-840.314718,8.854e-05,2]
[353221075,1739669437847,-1165.47807261,8.854e-05,2]
[353221076,1739669437857,-500.0,8.854e-05,2]
[353221077,1739669437867,-265.71901755,8.854e-05,2]
[353221084,1739669440150,-234.28098245,8.854e-05,2]
[353221085,1739669440160,-500.0,8.854e-05,2]
[353221086,1739669440170,-500.0,8.854e-05,2]
[353221088,1739669440180,-1200.71901755,8.854e-05,2]
[353221091,1739669440191,-554.77098245,8.854e-05,2]
[353221092,1739669440201,-78.00704397,8.854e-05,2]
[353221110,1739669949788,165.79911087,8.697e-05,5]
[353221138,1739670632166,-300.0,8.851e-05,2]
[353221139,1739670632235,-596.47,8.851e-05,2]
[353221140,1739670632244,-500.0,8.851e-05,2]
[353221141,1739670632253,-500.0,8.851e-05,2]
[353221142,1739670632262,-210.64891016,8.851e-05,2]
[353221167,1739670640223,-89.35108984,8.851e-05,2]
[353221168,1739670640233,-500.0,8.851e-05,2]
[353221169,1739670640242,-347.74603006,8.852e-05,2]
[353221201,1739670815933,343.0,0.00019,120]
[353221212,1739671076392,296.122482,7.855e-05,2]
[353221213,1739671305362,62111.9835113,8.8e-05,2]
[353221219,1739671807677,2730.89026777,1.02e-05,2]
[353221255,1739671832339,-300.0,8.848e-05,2]
[353221257,1739671832349,-1036.53056753,8.849e-05,2]
[353221271,1739671832476,-200.56943247,8.849e-05,2]
[353221273,1739671832485,-2680.24,8.849e-05,2]
[353221275,1739671832495,-500.0,8.849e-05,2]
[353221277,1739671832504,-500.0,8.849e-05,2]
[353221279,1739671832513,-500.0,8.849e-05,2]
[353221281,1739671832523,-500.0,8.849e-05,2]
[353221283,1739671832532,-1850.76,8.849e-05,2]
[353221285,1739671832542,-988.69,8.849e-05,2]
[353221288,1739671832552,-4137.21,8.849e-05,2]
[353221290,1739671832562,-982.62,8.849e-05,2]
[353221292,1739671832571,-500.0,8.849e-05,2]
[353221294,1739671832581,-1889.38,8.849e-05,2]
[353221296,1739671832592,-1870.86,8.849e-05,2]
[353221298,1739671832602,-1488.1,8.849e-05,2]
[353221300,1739671832611,-500.0,8.849e-05,2]
[353221302,1739671832620,-727.15,8.849e-05,2]
[353221304,1739671832629,-500.0,8.849e-05,2]
[353221306,1739671832639,-606.96,8.849e-05,2]
[353221308,1739671832648,-2146.44,8.849e-05,2]
[353221310,1739671832657,-3397.14,8.849e-05,2]
[353221312,1739671832666,-500.0,8.849e-05,2]
[353221314,1739671832675,-302.53277905,8.849e-05,2]
[353221316,1739671832686,-500.0,8.849e-05,2]
[353221318,1739671832696,-546.91001066,8.849e-05,2]
[353221320,1739671832705,-500.0,8.849e-05,2]
[353221322,1739671832715,-500.0,8.849e-05,2]
[353221324,1739671832724,-500.0,8.849e-05,2]
[353221326,1739671832734,-500.0,8.849e-05,2]
[353221328,1739671832744,-500.0,8.849e-05,2]
[353221330,1739671832753,-500.0,8.849e-05,2]
[353221331,1739671832763,-500.0,8.849e-05,2]
[353221333,1739671832772,-500.0,8.849e-05,2]
[353221335,1739671832782,-500.0,8.849e-05,2]
[353221337,1739671832792,-500.0,8.849e-05,2]
[353221338,1739671832801,-500.0,8.849e-05,2]
[353221340,1739671832811,-500.0,8.849e-05,2]
[353221343,1739671832820,-500.0,8.849e-05,2]
[353221345,1739671832829,-195.2226725,8.849e-05,2]
[353221347,1739671832839,-500.0,8.849e-05,2]
[353221349,1739671832848,-500.0,8.849e-05,2]
[353221351,1739671832859,-500.0,8.849e-05,2]
[353221353,1739671832868,-502.87911598,8.85e-05,2]
[353221355,1739671832877,-503.52383129,8.85e-05,2]
[353221357,1739671832887,-816.63,8.85e-05,2]
[353221359,1739671832896,-500.0,8.85e-05,2]
[353221361,1739671832905,-720.5,8.85e-05,2]
[353221363,1739671832915,-500.0,8.85e-05,2]
[353221365,1739671832924,-737.9,8.85e-05,2]
[353221367,1739671832935,-500.0,8.85e-05,2]
[353221369,1739671832946,-500.0,8.85e-05,2]
[353221371,1739671832955,-502.96886447,8.85e-05,2]
[353221373,1739671832964,-500.0,8.85e-05,2]
[353221375,1739671832973,-500.0,8.85e-05,2]
[353221377,1739671832983,-509.98699238,8.85e-05,2]
[353221380,1739671832994,-1182.23,8.85e-05,2]
[353221382,1739671833004,-771.24,8.85e-05,2]
[353221383,1739671833013,-500.0,8.85e-05,2]
[353221386,1739671833023,-500.0,8.85e-05,2]
[353221387,1739671833032,-500.0,8.85e-05,2]
[353221390,1739671833042,-354.74550724,8.85e-05,2]
[353221493,1739671838095,-781.03,8.849e-05,2]
[353221494,1739671838105,-151.55958962,8.85e-05,2]
[353221495,1739671838119,-742.62,8.85e-05,2]
[353221496,1739671838129,-500.0,8.85e-05,2]
[353221497,1739671838139,-596.54,8.85e-05,2]
[353221498,1739671838149,-500.0,8.85e-05,2]
[353221499,1739671838158,-500.0,8.85e-05,2]
[353221500,1739671838168,-407.94153464,8.85e-05,2]
[353221503,1739671840325,-891.81,8.849e-05,2]
[353221504,1739671840335,-103.1684795,8.85e-05,2]
[353221505,1739671840347,-1158.54,8.85e-05,2]
[353221506,1739671840356,-500.0,8.85e-05,2]
[353221507,1739671840365,-500.0,8.85e-05,2]
[353221508,1739671840375,-500.0,8.85e-05,2]
[353221509,1739671840385,-806.96,8.85e-05,2]
[353221510,1739671840395,-502.66966309,8.85e-05,2]
[353221511,1739671840406,-233.01715661,8.85e-05,2]
[353221512,1739671840416,-687.63,8.85e-05,2]
[353221513,1739671840428,-500.0,8.85e-05,2]
[353221514,1739671840437,-500.0,8.85e-05,2]
[353221515,1739671840447,-507.86749704,8.85e-05,2]
[353221516,1739671840456,-500.0,8.85e-05,2]
[353221517,1739671840466,-505.8055659,8.85e-05,2]
[353221518,1739671840475,-500.0,8.85e-05,2]
[353221519,1739671840484,-500.0,8.85e-05,2]
[353221520,1739671840493,-816.44,8.85e-05,2]
[353221523,1739671840502,-816.44,8.85e-05,2]
[353221524,1739671840524,-816.44,8.85e-05,2]
[353221525,1739671840535,-30841.28782085,8.85e-05,2]
[353221581,1739671843363,-3426.49217915,8.85e-05,2]
[353221583,1739671843374,-510.15119049,8.85e-05,2]
[353221585,1739671843383,-500.0,8.85e-05,2]
[353221587,1739671843393,-114.32734117,8.85e-05,2]
[353221629,1739671843785,-1396.35,8.85e-05,2]
[353221632,1739671843797,-447.98265883,8.85e-05,2]
[353221634,1739671843807,-39.10171385,8.85e-05,2]
[353222019,1739672165126,168.77840813,8.575e-05,2]
[353222020,1739672369282,1003.04069923,8.671e-05,2]
[353222021,1739672400779,189.4880379,8.765e-05,2]
[353222022,1739672445567,189.488038,8.765e-05,2]
[353222088,1739673032451,-300.0,8.846e-05,2]
[353222090,1739673032462,-1373.05,8.847e-05,2]
[353222091,1739673032471,-2927.5,8.847e-05,2]
[353222092,1739673032481,-534.42,8.847e-05,2]
[353222093,1739673032490,-500.0,8.847e-05,2]
[353222094,1739673032500,-500.0,8.847e-05,2]
[353222095,1739673032511,-1961.14,8.847e-05,2]
[353222096,1739673032521,-4690.15,8.847e-05,2]
[353222097,1739673032530,-1047.54283836,8.847e-05,2]
[353222098,1739673032550,-88.76716164,8.847e-05,2]
[353222099,1739673032560,-663.81143622,8.847e-05,2]
[353222100,1739673032571,-392.52856378,8.847e-05,2]
[353222101,1739673032581,-2037.59899042,8.847e-05,2]
[353222102,1739673032612,-50.03100958,8.847e-05,2]
[353222103,1739673032621,-443.61899042,8.847e-05,2]
[353222115,1739673038330,-566.72796838,8.847e-05,2]
[353222116,1739673038343,-461.01068651,8.847e-05,2]